bitfinex/quotes_ETHUSD_20260208
["timestamp","ask_amount","ask_price","bid_price","bid_amount"]
[1770575647442,0.04770879,2121.0,2119.4,1.17957912]
[1770575647647,4.71468344,2121.1,2119.4,1.17957912]
[1770575647946,0.04770879,2121.0,2119.4,1.17957912]
[1770575648263,0.04770879,2120.6,2118.8,4.71963105]
[1770575648470,4.76239223,2121.1,2119.3,1.22733737]
[1770575648665,8.06139223,2121.1,2119.3,1.22733737]
[1770575648847,8.06139223,2121.1,2119.3,1.17962858]
[1770575649165,0.04770879,2120.6,2118.4,8.06716709]
[1770575649359,1.17896722,2120.5,2118.4,3.34670879]
[1770575649556,1.17896722,2120.5,2118.5,4.72030767]
[1770575649557,0.04770879,2120.3,2118.5,4.72030767]
[1770575650279,0.04770879,2119.9,2118.4,1.18009542]
[1770575650474,0.04770879,2119.6,2118.1,4.72106403]
[1770575650662,0.04770879,2119.6,2118.0,1.18035131]
[1770575650862,0.04770879,2119.3,2117.8,1.18045464]
[1770575651052,0.04770879,2119.0,2117.6,8.02131032]
[1770575651250,0.04770879,2119.3,2117.9,1.18039407]
[1770575651452,0.04770879,2119.3,2117.4,0.0011]
[1770575651453,0.04770879,2119.0,2118.0,0.0011]
[1770575651655,0.04770879,2118.7,2118.0,0.0011]
[1770575651846,0.04770879,2118.7,2117.8,2.16389099]
[1770575652046,0.04770879,2118.4,2117.4,0.0011]
[1770575652258,0.04770879,2118.4,2116.9,1.18206071]
[1770575652465,0.04770879,2118.2,2116.9,0.0011]
[1770575652670,0.94863173,2118.7,2117.0,1.18087553]
[1770575652870,0.04770879,2118.4,2117.0,1.18087553]
[1770575653078,0.04770879,2118.4,2116.9,1.1820615]
[1770575653374,3.298,2118.4,2117.0,1.18089027]
[1770575653579,1.22790045,2118.3,2116.9,1.18202229]
[1770575653783,1.18019166,2118.3,2117.0,1.18091639]
[1770575654277,1.18019166,2118.3,2117.1,0.04770879]
[1770575654657,1.18019166,2118.3,2117.0,2.13476277]
[1770575654875,1.18019166,2118.3,2117.0,1.18091639]
[1770575655576,4.72076665,2118.5,2116.9,0.0011]
[1770575656167,0.04770879,2118.4,2116.9,0.0011]
[1770575656482,3.34670879,2118.4,2116.9,0.0011]
[1770575656684,4.72076665,2118.5,2116.9,0.0011]
[1770575658575,0.04770879,2118.4,2116.9,0.0011]
[1770575659079,0.04770879,2118.1,2116.9,0.0011]
[1770575659282,0.04770879,2118.0,2116.9,0.0011]
[1770575659486,0.90261567,2118.3,2116.9,0.0011]
[1770575659779,4.72076665,2118.6,2116.9,1.18207217]
[1770575659984,4.71896802,2119.2,2117.2,0.987343]
[1770575660184,1.17974611,2119.1,2117.3,0.04770879]
[1770575660483,1.2274549,2119.1,2117.3,0.93963421]
[1770575660686,0.04770879,2118.5,2116.9,1.18207217]
[1770575660851,0.04770879,2118.4,2116.9,1.18207217]
[1770575661058,3.34670879,2118.4,2116.9,1.18207217]
[1770575661254,0.04770879,2118.0,2116.9,0.0011]
[1770575661573,0.95032446,2117.7,2116.9,0.0011]
[1770575661777,1.22829058,2117.6,2116.4,1.18121438]
[1770575662083,1.18058179,2117.6,2116.4,1.18121438]
[1770575662292,0.04770879,2117.4,2116.3,1.18127804]
[1770575662459,1.18058179,2117.6,2116.3,1.18130321]
[1770575662818,3.299,2117.4,2115.8,4.72632731]
[1770575662973,1.18058179,2117.6,2116.4,1.18123319]
[1770575663359,1.18058179,2117.6,2116.4,1.18124825]
[1770575663556,1.18058179,2117.6,2116.6,2.3]
[1770575664480,0.04770879,2117.4,2116.6,2.24]
[1770575665267,1.22829058,2117.6,2116.6,2.24]
[1770575665672,0.04770879,2117.5,2116.6,2.24]
[1770575665880,1.1806933,2117.4,2116.5,0.0011]
[1770575666663,0.04770879,2117.2,2116.5,0.0011]
[1770575666906,3.3,2117.1,2116.5,0.0011]
[1770575667892,1.18097217,2116.9,2116.5,0.0011]
[1770575668197,1.18097217,2116.9,2115.4,4.72722277]
[1770575668381,1.18097217,2116.9,2115.5,3.204]
[1770575668699,1.18097217,2116.9,2115.4,4.72722277]
[1770575668995,0.04770879,2116.7,2115.4,1.18180958]
[1770575669186,1.18097217,2116.9,2115.4,1.18180958]
[1770575669366,0.04770879,2116.7,2115.4,1.18180958]
[1770575669561,1.18097217,2116.9,2115.4,1.18180958]
[1770575669801,0.04770879,2116.7,2115.4,1.18180958]
[1770575670671,1.18113956,2116.6,2115.4,1.18180958]
[1770575670996,5.38347628,2117.2,2115.4,1.18180958]
[1770575671200,1.18086061,2117.2,2115.8,6.187312]
[1770575671406,4.480669,2117.5,2116.0,0.93963421]
[1770575671608,3.3,2117.5,2116.3,5.449712]
[1770575671795,3.3,2117.5,2116.3,0.93963421]
[1770575672002,4.48064394,2117.5,2116.3,0.93963421]
[1770575672305,3.3,2117.5,2116.6,7.074433]
[1770575672495,3.3,2117.5,2116.6,3.763166]
[1770575672699,3.301,2118.2,2116.7,1.18108376]
[1770575673687,3.301,2118.2,2116.9,2.3]
[1770575673890,0.04770879,2117.8,2116.9,2.3]
[1770575674106,0.95032446,2118.1,2116.9,2.3]
[1770575674409,0.04770879,2117.8,2116.9,2.3]
[1770575674591,1.1806933,2117.4,2116.2,4.72536036]
[1770575674790,3.301,2117.3,2116.0,1.18143179]
[1770575674997,3.301,2117.3,2116.1,1.18139115]
[1770575675288,3.301,2117.3,2116.1,1.18139103]
[1770575676105,3.301,2117.3,2115.8,1.18155694]
[1770575676106,0.04770879,2117.1,2115.8,1.18155694]
[1770575676515,0.04770879,2117.2,2116.5,0.0011]
[1770575676811,1.18086061,2117.1,2116.5,0.0011]
[1770575677203,0.04770879,2116.9,2115.6,1.18169786]
[1770575678813,1.18102796,2116.8,2115.8,2.3]
[1770575680118,1.18102796,2116.8,2115.8,3.48158352]
[1770575680317,4.72324657,2117.2,2115.8,3.48158352]
[1770575680690,4.72324657,2117.2,2115.8,4.42121773]
[1770575681710,4.77095536,2117.2,2115.8,4.42121773]
[1770575682037,4.72324657,2117.2,2115.8,4.42121773]
[1770575682213,4.72223328,2117.7,2116.0,0.93963421]
[1770575682608,3.302,2117.9,2116.2,0.93963421]
[1770575682840,0.001,2117.9,2116.7,0.04770879]
[1770575683006,0.001,2117.9,2117.1,7.400392]
[1770575683335,0.001,2117.9,2117.1,0.93963421]
[1770575683714,0.001,2117.9,2116.7,3.34870879]
[1770575683715,0.001,2117.9,2116.8,5.937923]
[1770575683916,0.001,2117.9,2117.0,0.93963421]
[1770575684143,0.001,2117.9,2117.1,3.251]
[1770575684638,0.001,2117.9,2117.2,12.188024]
[1770575684840,0.001,2117.9,2117.3,1.18074906]
[1770575685939,0.001,2117.9,2116.7,4.724186]
[1770575686109,0.001,2117.9,2116.9,1.18094236]
[1770575686315,0.001,2117.9,2117.0,1.18088804]
[1770575686517,0.001,2117.9,2117.2,1.18080453]
[1770575686731,0.001,2117.9,2116.7,0.98190584]
[1770575686937,0.001,2117.9,2117.0,6.27817984]
[1770575687123,0.001,2117.9,2117.0,0.98190584]
[1770575687323,0.003,2117.8,2117.0,0.98190584]
[1770575687721,0.003,2117.8,2116.4,0.98190584]
[1770575688046,0.003,2117.8,2116.7,4.791]
[1770575688210,0.003,2117.8,2116.7,3.274016]
[1770575688625,0.003,2117.8,2116.9,2.3]
[1770575689045,0.003,2117.8,2116.9,3.48093109]
[1770575689615,0.001,2117.7,2116.9,3.48093109]
[1770575691240,0.001,2117.7,2116.9,3.48093106]
[1770575693342,0.001,2117.7,2116.9,2.3]
[1770575693540,0.001,2117.7,2116.9,3.4809699]
[1770575693747,0.001,2117.7,2116.9,2.3]
[1770575695258,1.18152604,2117.7,2116.9,3.48096602]
[1770575695462,0.001,2117.7,2116.9,3.48096602]
[1770575696155,0.04870879,2117.7,2116.9,2.3]
[1770575696334,0.99701444,2117.7,2116.6,1.1811308]
[1770575696541,0.99701444,2117.7,2116.6,1.18112945]
[1770575696742,0.99701444,2117.7,2116.6,1.18112591]
[1770575697043,0.001,2117.7,2116.7,4.72424121]
[1770575697253,0.001,2117.7,2116.4,2.16315702]
[1770575697437,0.001,2117.7,2116.7,4.156]
[1770575698248,0.001,2117.7,2116.7,4.93790584]
[1770575698448,0.001,2117.7,2116.8,5.016497]
[1770575698634,0.001,2117.7,2116.9,2.3]
[1770575699259,0.001,2117.7,2117.0,1.18091639]
[1770575700173,0.001,2117.7,2116.9,2.3]
[1770575700412,0.001,2117.7,2116.9,1.18097066]
[1770575700534,1.17980179,2119.0,2117.0,0.98190584]
[1770575700735,1.17980179,2119.0,2117.5,3.608]
[1770575700937,0.04770879,2119.0,2117.3,0.98190584]
[1770575701232,1.17985747,2118.9,2117.4,1.1806933]
[1770575701436,4.71905359,2119.1,2117.5,3.91610584]
[1770575701648,1.17974611,2119.1,2117.7,2.078]
[1770575702262,1.17974611,2119.1,2117.8,6.911439]
[1770575702483,4.71804788,2119.6,2117.8,0.98190584]
[1770575702784,5.66635353,2119.6,2117.9,5.61203]
[1770575703368,0.04770879,2119.4,2117.9,3.938195]
[1770575703663,1.17963478,2119.3,2117.9,1.18037793]
[1770575703863,0.04770879,2119.1,2118.1,2.3]
[1770575704885,0.04770879,2118.8,2118.1,2.3]
[1770575705084,0.04770879,2118.8,2117.0,0.98190584]
[1770575705085,0.04770879,2118.5,2117.0,0.98190584]
[1770575705386,3.3,2118.7,2117.3,1.18071373]
[1770575705684,1.18002454,2118.6,2117.1,4.7232416]
[1770575706188,0.04770879,2118.5,2117.1,4.7232416]
[1770575706691,0.04770879,2118.2,2116.9,1.18091888]
[1770575706896,0.04770879,2118.2,2116.9,1.18096089]
[1770575707094,0.04770879,2118.2,2116.7,0.0011]
[1770575707280,0.04770879,2117.6,2116.7,0.0011]
[1770575707599,1.18063754,2117.5,2116.7,0.0011]
[1770575708294,0.04770879,2117.3,2116.7,0.0011]
[1770575709593,1.18080483,2117.2,2116.7,0.0011]
[1770575709801,0.04770879,2117.0,2116.7,0.0011]
[1770575709993,1.18080483,2117.2,2116.5,0.0011]
[1770575710296,0.04770879,2117.0,2115.8,2.16459187]
[1770575710994,0.04770879,2117.0,2115.8,0.98300584]
[1770575711188,0.04770879,2117.0,2115.8,2.16459043]
[1770575711574,0.04770879,2117.3,2115.8,2.16459043]
[1770575712600,0.04770879,2117.0,2115.8,2.16459043]
[1770575713665,1.18097217,2116.9,2115.8,0.98300584]
[1770575713867,3.3,2116.8,2115.8,0.0011]
[1770575714672,0.04770879,2116.6,2115.8,0.0011]
[1770575714896,0.04770879,2116.5,2116.0,0.0011]
[1770575715093,0.04770879,2116.5,2115.8,0.0011]
[1770575715295,0.04770879,2116.4,2115.8,0.0011]
[1770575715496,0.1024,2116.7,2115.8,0.0011]
[1770575715716,1.18136282,2116.2,2115.4,0.0011]
[1770575715931,0.04770879,2116.0,2115.4,0.0011]
[1770575716075,3.301,2115.9,2115.4,0.0011]
[1770575717918,1.18158616,2115.8,2115.4,0.0011]
[1770575718388,4.72545128,2116.4,2115.4,0.0011]
[1770575718389,1.18125118,2116.4,2115.4,0.0011]
[1770575719086,1.22895997,2116.4,2115.4,0.0011]
[1770575720226,0.04770879,2116.1,2115.4,0.0011]
[1770575720540,1.22895997,2116.4,2115.4,0.0011]
[1770575722431,0.04770879,2116.1,2115.4,0.0011]
[1770575722814,1.22895997,2116.4,2115.4,0.0011]
[1770575723026,0.04770879,2116.1,2115.4,0.0011]
[1770575723821,0.04770879,2116.0,2115.4,0.0011]
[1770575724022,2.02880238,2116.4,2115.4,0.0011]
[1770575724223,0.04770879,2116.0,2115.4,0.0011]
[1770575724540,1.18153031,2115.9,2115.4,0.0011]
[1770575724754,3.34970879,2115.8,2115.4,0.0011]
[1770575725622,0.04770879,2115.7,2114.9,0.0011]
[1770575725820,3.302,2115.8,2114.9,0.95321297]
[1770575726640,4.48364113,2115.8,2114.9,0.0011]
[1770575727149,4.48364113,2115.8,2115.6,0.0011]
[1770575727443,3.302,2115.8,2115.4,0.0011]
[1770575728512,0.04770879,2115.7,2115.4,0.0011]
[1770575728711,1.18169786,2115.6,2115.4,0.0011]
[1770575729249,1.22939399,2115.7,2115.4,0.0011]
[1770575730640,1.1816852,2115.7,2114.9,0.0011]
[1770575731120,1.22939399,2115.7,2114.9,0.0011]
[1770575731762,1.1816852,2115.7,2114.9,0.0011]
[1770575733376,1.22939399,2115.7,2114.9,0.0011]
[1770575733754,3.302,2115.8,2115.0,0.95211297]
[1770575734157,0.04770879,2115.6,2114.9,0.0011]
[1770575734551,4.48359634,2115.8,2114.9,0.0011]
[1770575735786,4.48359634,2115.8,2114.9,0.95321297]
[1770575736380,3.302,2115.8,2114.9,0.95321297]
[1770575736583,0.001,2115.9,2114.9,0.95321297]
[1770575737443,0.001,2115.9,2115.1,0.95211297]
[1770575737953,0.31869922,2116.6,2115.3,0.95211297]
[1770575738373,0.31869922,2116.6,2115.7,0.95211297]
[1770575739259,0.31869922,2116.6,2115.9,0.95211297]
[1770575740173,0.001,2116.4,2115.9,0.95211297]
[1770575740471,0.07207422,2116.6,2116.0,0.95211297]
[1770575740670,7.198e-05,2116.6,2116.0,0.95211297]
[1770575741392,7.198e-05,2116.6,2116.2,0.95211297]
[1770575741553,3.303,2117.2,2116.2,0.95211297]
[1770575743372,3.303,2117.2,2116.3,1.18130699]
[1770575743689,3.303,2117.2,2116.4,0.95211297]
[1770575743870,3.302,2117.5,2116.0,0.95211297]
[1770575744071,3.302,2117.5,2115.6,0.95211297]
[1770575744072,0.04770879,2116.6,2115.6,0.95211297]
[1770575744271,3.302,2116.6,2115.6,0.95211297]
[1770575744592,0.04770879,2116.2,2115.3,1.18186488]
[1770575744764,0.04770879,2116.2,2115.3,1.18182815]
[1770575744963,3.302,2116.6,2115.7,5.64319472]
[1770575745166,3.302,2116.6,2116.0,1.1814735]
[1770575745365,3.302,2116.6,2115.8,4.72620841]
[1770575745366,3.302,2116.6,2115.8,5.64283815]
[1770575745591,3.302,2116.6,2115.9,0.91662974]
[1770575746485,3.302,2116.6,2115.8,0.91662974]
[1770575746890,7.01656692,2117.7,2115.8,0.91662974]
[1770575747107,4.48256039,2117.7,2116.0,0.91662974]
[1770575747309,0.04770879,2117.6,2116.0,0.91662974]
[1770575747494,3.302,2117.7,2116.2,0.91662974]
[1770575748503,1.18141655,2117.9,2116.2,0.91662974]
[1770575748878,0.001,2117.9,2116.4,0.91662974]
[1770575749081,0.001,2117.9,2116.6,0.91662974]
[1770575749492,0.001,2117.9,2116.8,0.91662974]
[1770575750301,0.3202194,2118.4,2117.4,0.91662974]
[1770575750886,0.3202194,2118.4,2117.6,0.91662974]
[1770575751213,1e-08,2118.4,2117.5,0.91662974]
[1770575751385,1e-08,2118.4,2117.7,0.91662974]
[1770575751589,1e-08,2118.4,2117.9,0.91362974]
[1770575753628,0.003,2118.9,2118.3,0.91662974]
[1770575753910,0.003,2118.9,2118.5,0.91662974]
[1770575754122,0.04770879,2120.7,2118.9,0.91662974]
[1770575754305,0.04770879,2120.7,2119.1,0.91662974]
[1770575754613,0.04770879,2120.4,2119.1,0.91662974]
[1770575754826,0.04770879,2119.8,2118.3,0.91662974]
[1770575755294,0.04770879,2120.0,2118.5,0.91662974]
[1770575755507,0.04770879,2120.7,2119.1,0.91662974]
[1770575755707,1.17886179,2120.7,2119.1,0.91662974]
[1770575756128,0.31968592,2120.8,2119.3,0.91662974]
[1770575756321,1.54619603,2120.8,2119.3,0.91662974]
[1770575756622,0.31968592,2120.8,2119.3,0.91662974]
[1770575756850,0.31968592,2120.8,2119.7,0.91662974]
[1770575757033,0.31968592,2120.8,2119.5,0.91662974]
[1770575757354,0.31968592,2120.8,2119.7,0.91662974]
[1770575757561,0.31968592,2120.8,2119.9,0.91662974]
[1770575757765,1.49853112,2120.8,2119.9,0.91662974]
[1770575757931,0.04770879,2120.7,2119.7,1.17941181]
[1770575758119,0.04770879,2120.4,2119.3,1.17963251]
[1770575758318,0.04770879,2120.7,2119.4,0.91662974]
[1770575758512,0.04770879,2120.7,2119.6,1.17942408]
[1770575759045,0.04770879,2120.4,2119.5,1.17948547]
[1770575759241,0.04770879,2120.3,2119.0,0.91662974]
[1770575759450,0.04770879,2120.7,2119.0,0.91662974]
[1770575759643,0.31968592,2120.8,2119.2,0.91662974]
[1770575759854,0.04770879,2120.5,2119.2,0.91662974]
[1770575760020,0.04770879,2119.9,2118.8,0.91662974]
[1770575760223,0.04770879,2119.0,2118.0,1.18032614]
[1770575760572,0.04770879,2118.3,2117.4,0.91662974]
[1770575760754,0.04770879,2118.6,2117.4,0.91662974]
[1770575760755,3.34670879,2118.6,2117.4,0.91662974]
[1770575760952,0.04770879,2118.3,2117.3,4.72295256]
[1770575761151,0.04770879,2118.3,2116.9,5.64047351]
[1770575761152,0.04770879,2118.5,2116.9,0.91662974]
[1770575761445,0.04770879,2117.7,2117.0,1.1808794]
[1770575761756,1.17985747,2118.9,2117.2,0.91662974]
[1770575761964,4.47770242,2119.2,2117.4,0.91662974]
[1770575762251,3.298,2119.2,2117.8,0.91662974]
[1770575762658,4.477695,2119.2,2117.8,0.91662974]
[1770575763459,4.47769938,2119.2,2117.8,0.91662974]
[1770575763638,0.001,2118.1,2117.9,1.18041456]
[1770575763839,0.001,2118.1,2117.9,2.0970443]
[1770575764754,1.17962803,2119.4,2118.1,0.91662974]
[1770575765347,3.299,2119.5,2118.1,0.91662974]
[1770575765538,1.17945034,2119.7,2118.1,0.91662974]
[1770575765855,0.04770879,2119.7,2118.3,0.91662974]
[1770575766059,0.04770879,2119.4,2118.3,0.91662974]
[1770575766435,1.17935654,2119.8,2118.3,0.91662974]
[1770575766755,0.04770879,2119.6,2118.3,0.91662974]
[1770575767233,0.04770879,2119.4,2118.3,0.91662974]
[1770575767735,0.04770879,2119.4,2118.0,1.18032087]
[1770575767736,1.22745697,2119.1,2118.0,1.18032087]
[1770575767937,1.22717661,2119.7,2118.3,1.1801726]
[1770575768142,0.04770879,2119.1,2117.9,4.72161085]
[1770575768365,0.04770879,2119.1,2118.1,1.18025941]
[1770575768663,0.04770879,2119.1,2118.0,1.18032193]
[1770575768955,0.04770879,2119.1,2118.1,1.18029732]
[1770575769171,0.04770879,2119.8,2118.3,2.0968086]
[1770575769343,5.52164603,2120.1,2118.4,0.91662974]
[1770575769344,0.04770879,2119.7,2118.4,0.91662974]
[1770575769755,3.298,2120.1,2118.6,0.91662974]
[1770575770055,4.47719578,2120.1,2118.6,0.91662974]
[1770575770437,3.298,2120.1,2118.7,10.300718]
[1770575770639,3.298,2120.1,2119.0,0.91662974]
[1770575771857,3.298,2120.1,2119.2,0.91662974]
[1770575772650,1.17891583,2120.6,2119.2,0.91662974]
[1770575772850,1.22659689,2120.7,2119.2,0.91662974]
[1770575773745,1.22678722,2120.3,2119.3,1.17963478]
[1770575774151,0.31968592,2120.8,2119.4,0.91662974]
[1770575774367,1.49848706,2120.8,2119.4,0.91662974]
[1770575774750,1.49848816,2120.8,2119.4,0.91662974]
[1770575775078,0.31968592,2120.8,2119.4,0.91662974]
[1770575775249,1.54621592,2120.8,2119.4,0.91662974]
[1770575775679,0.31968592,2120.8,2119.8,0.97671987]
[1770575775857,0.01309204,2120.9,2120.0,0.97671987]
[1770575776056,1e-08,2120.9,2120.0,0.97671987]
[1770575777870,1e-08,2120.9,2120.1,2.15590953]
[1770575778057,0.1399501,2123.5,2120.9,0.97671987]
[1770575778255,0.1399501,2123.5,2122.1,0.97671987]
[1770575778256,0.46050687,2123.5,2122.1,0.97671987]
[1770575778470,0.46050687,2123.5,2121.4,8.22172149]
[1770575778471,0.04770879,2122.4,2121.4,0.24628781]
[1770575778668,0.04770879,2123.0,2121.5,0.97671987]
[1770575778882,0.32055677,2122.9,2121.5,0.97671987]
[1770575779055,0.32055677,2123.2,2121.5,0.97671987]
[1770575779256,0.04770879,2123.0,2121.5,0.97671987]
[1770575779478,0.32055677,2123.2,2121.5,0.97671987]
[1770575779680,0.32055677,2123.2,2121.7,0.97671987]
[1770575779986,0.32055677,2123.2,2122.1,0.97671987]
[1770575780483,0.32055677,2123.2,2122.3,0.97671987]
[1770575780686,0.1399501,2123.5,2122.5,0.97671987]
[1770575780986,0.36826556,2123.4,2122.0,2.1548537]
[1770575781195,0.32055677,2123.4,2122.0,0.97671987]
[1770575781392,0.04770879,2123.2,2122.0,0.97671987]
[1770575781687,0.04770879,2123.0,2122.0,0.97671987]
[1770575781896,1.17780081,2122.6,2121.5,0.97671987]
[1770575782079,1.17772682,2122.8,2121.5,2.15512651]
[1770575782255,0.32055677,2122.6,2121.6,0.97671987]
[1770575782463,0.04770879,2123.1,2121.6,0.97671987]
[1770575782656,0.04770879,2122.8,2121.6,0.97671987]
[1770575782863,0.04770879,2122.5,2121.6,0.97671987]
[1770575783177,0.04770879,2122.2,2121.4,0.24628781]
[1770575783374,0.04770879,2122.1,2121.4,0.24628781]
[1770575783556,0.32055677,2122.4,2121.4,0.24628781]
[1770575783762,0.04770879,2122.2,2121.4,0.24628781]
[1770575784081,1.17803856,2122.2,2121.0,5.69141964]
[1770575784387,0.04770879,2122.0,2120.5,4.27171987]
[1770575784556,0.32055677,2122.1,2121.2,1.17854319]
[1770575784758,0.32055677,2122.1,2121.3,1.17849699]
[1770575784981,0.32055677,2122.1,2121.0,0.97671987]
[1770575785190,0.36826556,2122.1,2121.0,1.17868197]
[1770575785387,0.36826556,2122.1,2120.6,0.97671987]
[1770575785583,0.36826556,2122.1,2120.9,1.17874352]
[1770575785786,0.36826556,2122.1,2121.0,1.1786879]
[1770575785995,0.36826556,2122.1,2120.9,1.17871116]
[1770575786169,0.36826556,2122.1,2120.8,4.71516284]
[1770575786367,1.49864731,2122.1,2120.8,0.97671987]
[1770575786686,0.04770879,2122.0,2120.8,0.97671987]
[1770575786892,1.54634548,2122.1,2120.8,0.97671987]
[1770575787393,1.49863669,2122.1,2120.8,0.97671987]
[1770575787567,1.54634548,2122.1,2120.8,0.97671987]
[1770575788190,1.54634548,2122.1,2120.9,1.17874487]
[1770575788475,1.54634548,2122.1,2120.8,1.17876538]
[1770575788795,0.04770879,2121.6,2120.5,0.97671987]
[1770575789107,0.04770879,2121.6,2120.5,2.15566457]
[1770575789309,0.04770879,2121.6,2119.5,4.71788583]
[1770575789310,0.04770879,2121.3,2121.0,0.0011]
[1770575789603,0.04770879,2121.3,2120.3,1.17907351]
[1770575789789,0.32055677,2121.2,2120.1,1.17915696]
[1770575789992,0.04770879,2120.8,2119.7,8.49140223]
[1770575790189,0.04770879,2120.8,2119.7,1.17937889]
[1770575790508,0.04770879,2120.5,2119.3,4.71849563]
[1770575790675,1.4994128,2120.7,2119.6,1.1794652]
[1770575790873,0.04770879,2120.5,2119.3,4.71847559]
[1770575791074,0.32055677,2120.6,2119.6,1.17946698]
[1770575791289,0.04770879,2120.5,2119.5,1.17947627]
[1770575791494,0.04770879,2120.5,2119.2,0.97671987]
[1770575791802,0.04770879,2120.5,2119.4,1.17957085]
[1770575791803,0.32055677,2120.4,2119.4,1.17957085]
[1770575791981,1.17885603,2120.7,2119.6,1.179463]
[1770575792179,1.17885603,2120.7,2119.7,1.17941218]
[1770575792404,0.32055677,2120.6,2119.4,0.97671987]
[1770575792705,0.32055677,2120.6,2119.6,0.97671987]
[1770575792870,0.32055677,2120.6,2119.8,0.97671987]
[1770575793670,1.1785226,2121.3,2119.8,0.97671987]
[1770575794082,0.32055677,2121.2,2119.8,0.97671987]
[1770575794278,0.32055677,2121.2,2120.2,0.97671987]
[1770575795482,1.49918728,2121.2,2120.2,0.97671987]
[1770575795684,0.32055677,2121.2,2120.2,0.97671987]
[1770575795888,1.49913651,2121.2,2120.2,0.97671987]
[1770575796418,0.32055677,2121.2,2120.3,1.17907843]
[1770575796582,0.32055677,2121.2,2120.3,2.1557983]
[1770575797277,0.32055677,2121.2,2120.4,0.97671987]
[1770575797479,4.71372342,2121.5,2120.3,1.17907843]
[1770575797480,11.4480228,2122.3,2120.6,0.97671987]
[1770575797707,4.94765962,2122.2,2120.6,0.97671987]
[1770575798510,4.94765962,2122.2,2120.8,0.97671987]
[1770575799210,1.41341316,2122.2,2120.8,0.97671987]
[1770575799982,1.41341316,2122.2,2121.0,0.97671987]
[1770575799983,0.23539036,2122.2,2121.0,0.97671987]
[1770575800220,4.47292056,2122.4,2121.0,0.97671987]
[1770575800386,0.23539036,2122.3,2121.0,0.97671987]
[1770575800719,0.23539036,2122.3,2121.2,0.97671987]
[1770575801222,3.295,2122.4,2121.2,0.97671987]
[1770575801506,0.23539036,2122.2,2121.2,0.97671987]
[1770575802077,0.23539036,2122.2,2121.1,1.17863372]
[1770575802515,1.17818935,2121.9,2120.8,1.17880045]
[1770575802685,0.23539036,2121.8,2120.9,0.97671987]
[1770575802887,0.23539036,2121.7,2120.9,0.97671987]
[1770575803089,0.23539036,2121.7,2120.8,1.17880045]
[1770575803090,0.23539036,2122.1,2120.8,1.17880045]
[1770575803407,0.23539036,2122.1,2120.9,0.97671987]
[1770575804399,0.04770879,2122.0,2120.8,1.17880045]
[1770575804789,1.41357971,2121.9,2120.7,4.71527508]
[1770575805007,0.04770879,2121.7,2120.6,4.71520181]
[1770575805218,1.41357971,2121.9,2120.6,4.71520181]
[1770575805426,0.04770879,2121.7,2120.6,4.71520181]
[1770575805665,0.23539036,2121.9,2120.7,0.92937648]
[1770575806946,0.23539036,2121.9,2120.9,0.92937648]
[1770575807094,0.23539036,2121.9,2121.0,0.92937648]
[1770575807793,0.23539036,2121.9,2120.8,2.10817693]
[1770575807986,0.23539036,2121.9,2121.1,0.92937648]
[1770575808313,1.17780081,2122.6,2121.1,0.92937648]
[1770575808700,0.003,2122.4,2121.1,0.92937648]
[1770575809227,0.003,2122.4,2121.3,0.92937648]
[1770575810199,0.04770879,2122.3,2121.3,0.92937648]
[1770575810408,0.04770879,2122.3,2121.2,1.17857816]
[1770575810589,0.003,2122.4,2121.2,1.17857816]
[1770575810784,0.04770879,2122.3,2121.2,1.17857816]
[1770575811225,1.1780228,2122.2,2121.0,1.17868929]
[1770575811436,0.04770879,2122.0,2121.0,1.17868929]
[1770575811617,1.1780228,2122.2,2121.0,1.17868929]
[1770575812216,1.17800883,2122.3,2121.1,0.92937648]
[1770575812416,1.22571762,2122.3,2121.1,0.92937648]
[1770575813104,0.04770879,2122.2,2121.0,1.17868929]
[1770575813618,1.17807831,2122.1,2120.8,4.71475719]
[1770575813930,0.04770879,2122.2,2120.9,0.92937648]
[1770575814329,0.001,2122.0,2120.9,0.92937648]
[1770575815627,0.001,2122.0,2121.0,1.17868929]
[1770575817937,0.003,2122.4,2121.5,6.68569527]
[1770575818136,0.003,2122.4,2121.6,0.92937648]
[1770575819802,0.003,2122.4,2121.7,1.17830041]
[1770575820446,0.003,2122.4,2121.0,6.68569527]
[1770575820447,0.04770879,2122.3,2121.4,1.17845189]
[1770575820726,0.04770879,2122.1,2121.3,1.17849623]
[1770575820929,0.04770879,2121.8,2120.4,4.22347648]
[1770575821130,0.04770879,2121.5,2120.6,1.17887773]
[1770575821428,0.04770879,2122.0,2120.6,1.17887773]
[1770575822011,1.17818935,2121.9,2120.5,4.71580038]
[1770575822210,3.293,2122.1,2120.6,0.92937648]
[1770575822211,4.47111033,2122.1,2120.6,0.92937648]
[1770575822414,0.04770879,2122.0,2120.6,0.92937648]
[1770575822797,0.04770879,2121.7,2120.6,0.92937648]
[1770575823136,0.04770879,2121.7,2120.5,4.71580038]
[1770575823312,0.04770879,2121.4,2120.4,1.1800814]
[1770575823507,0.04770879,2121.3,2120.4,1.1800814]
[1770575823829,3.34070879,2121.7,2120.4,1.1800814]
[1770575824151,1.17807831,2122.1,2120.4,0.93047648]
[1770575824298,0.04770879,2121.9,2120.4,0.93047648]
[1770575824797,0.04770879,2121.8,2120.4,0.93047648]
[1770575825004,0.04770879,2121.7,2120.4,0.93047648]
[1770575825400,0.04770879,2121.6,2120.4,0.93047648]
[1770575825719,0.04770879,2121.6,2120.4,0.0011]
[1770575825914,0.04770879,2121.3,2120.4,0.0011]
[1770575826109,1.17857816,2121.2,2120.4,0.0011]
[1770575826316,1.22627105,2121.3,2120.4,0.0011]
[1770575826505,0.04770879,2121.3,2120.4,0.0011]
[1770575827137,1.17850726,2121.4,2120.4,0.0011]
[1770575827311,0.04770879,2121.3,2120.6,0.0011]
[1770575827707,1.17850726,2121.4,2120.6,0.0011]
[1770575828034,0.04770879,2121.3,2120.6,0.0011]
[1770575828254,4.7131168,2121.8,2120.6,0.0011]
[1770575828416,0.04770879,2122.0,2120.6,0.93047648]
[1770575828620,1.17807831,2122.1,2120.6,0.93047648]
[1770575829118,4.52076817,2122.2,2120.6,0.93047648]
[1770575829627,0.001,2122.2,2120.8,0.92937648]
[1770575829827,1.17902952,2122.2,2120.8,0.92937648]
[1770575830144,1.2257871,2122.1,2120.8,0.92937648]
[1770575830331,1.17807831,2122.1,2120.8,1.17877158]
[1770575830532,4.71331327,2122.2,2120.9,0.92937648]
[1770575830533,1.17903322,2122.2,2120.9,0.92937648]
[1770575830716,0.04770879,2122.1,2120.9,0.92937648]
[1770575831039,1.17903322,2122.2,2120.9,0.92937648]
[1770575831225,1.22674201,2122.2,2120.9,0.92937648]